bitfinex-derivatives/quotes_ETHF0:USTF0_20241018
["timestamp","ask_amount","ask_price","bid_price","bid_amount"]
[1729256143181,0.38248,2615.2,2615.1,1.81371942]
[1729256144484,0.38247,2615.3,2615.2,0.38247]
[1729256144682,0.38247,2615.3,2615.2,1.81371942]
[1729256144881,0.38247,2615.3,2615.2,0.38247]
[1729256149776,3.2078,2615.5,2615.0,0.95626]
[1729256149977,0.38246,2615.4,2615.3,0.38245]
[1729256150789,3.2078,2615.8,2615.4,0.38244]
[1729256150986,3.2078,2615.8,2615.7,0.3824]
[1729256151579,3.59018,2615.8,2615.7,0.3824]
[1729256151794,3.2078,2615.8,2615.7,0.3824]
[1729256153181,3.59018,2615.8,2615.7,0.3824]
[1729256154085,3.2078,2615.8,2615.7,0.3824]
[1729256155882,0.38236,2616.0,2615.9,0.38237]
[1729256156084,3.59013,2616.2,2616.1,0.38234]
[1729256156393,3.2078,2616.2,2616.1,0.38234]
[1729256157391,3.59012,2616.2,2616.1,0.38234]
[1729256157999,0.38232,2616.3,2616.2,0.38232]
[1729256158289,0.38232,2616.3,2616.2,0.38231]
[1729256160581,3.2078,2616.5,2616.4,0.3823]
[1729256160789,0.95554,2617.0,2616.4,0.3823]
[1729256160790,3.2078,2616.8,2616.7,0.38225]
[1729256160987,3.2078,2616.8,2616.7,3.36225]
[1729256161185,3.2078,2617.1,2617.0,0.38221]
[1729256161491,3.2078,2617.5,2617.0,2.98]
[1729256161693,0.38215,2617.4,2617.3,0.38216]
[1729256162783,3.2078,2617.5,2617.1,0.80888]
[1729256163006,0.38221,2617.0,2616.8,0.4281]
[1729256163294,0.38221,2617.0,2616.9,0.38222]
[1729256163484,3.2078,2617.2,2616.9,0.38222]
[1729256163889,3.2078,2617.2,2616.8,0.4281]
[1729256164089,3.2078,2617.2,2616.8,0.81033]
[1729256164090,0.38222,2617.0,2616.8,0.81033]
[1729256164896,0.4417,2617.1,2616.6,2.98]
[1729256165088,0.38226,2616.7,2616.6,0.38227]
[1729256165283,0.38226,2616.7,2616.4,2.98]
[1729256165591,3.2078,2616.8,2616.6,0.38226]
[1729256165780,0.38225,2616.7,2616.6,0.38226]
[1729256165985,0.38225,2616.7,2616.5,0.38227]
[1729256166392,0.38225,2616.7,2616.6,0.38227]
[1729256166594,3.2078,2616.8,2616.4,3.3836]
[1729256166896,0.38225,2616.7,2616.4,3.3836]
[1729256167491,3.2078,2616.8,2616.4,3.3836]
[1729256167789,0.3823,2616.4,2616.3,0.3823]
[1729256168098,0.3823,2616.4,2616.2,2.98]
[1729256168290,0.3823,2616.4,2616.2,3.36232]
[1729256168490,0.3823,2616.4,2616.3,0.38231]
[1729256168690,0.3823,2616.4,2616.3,0.3823]
[1729256168905,0.3823,2616.4,2616.2,2.98]
[1729256169196,0.38231,2616.3,2616.2,3.36232]
[1729256169598,3.2078,2616.5,2616.2,3.36232]
[1729256169894,0.3823,2616.4,2616.2,3.36232]
[1729256170089,0.38231,2616.3,2616.2,3.36231]
[1729256174798,3.8224,2616.3,2615.9,2.98]
[1729256174999,0.38237,2615.9,2615.8,0.38238]
[1729256177091,0.38236,2616.0,2615.8,0.38238]
[1729256177502,0.4203,2616.1,2615.7,3.4055]
[1729256177809,0.38237,2616.0,2615.7,3.4055]
[1729256177996,0.38235,2616.0,2615.8,0.38237]
[1729256178303,0.38237,2615.9,2615.8,0.38237]
[1729256178492,0.4203,2616.1,2615.7,3.4055]
[1729256178697,0.4203,2616.1,2615.7,0.4255]
[1729256178698,0.38238,2615.8,2615.7,0.4255]
[1729256178900,0.3824,2615.7,2615.6,0.4316]
[1729256179095,0.3824,2615.7,2615.6,0.81401]
[1729256179495,0.3824,2615.7,2615.6,0.4316]
[1729256179897,0.3824,2615.7,2615.6,0.81401]
[1729256180593,0.38241,2615.6,2615.5,3.59022]
[1729256180802,0.38241,2615.6,2615.5,3.2078]
[1729256183203,0.38241,2615.6,2615.5,3.59023]
[1729256183407,0.3824,2615.7,2615.6,0.38241]
[1729256183599,0.38239,2615.8,2615.7,0.38239]
[1729256184002,0.38239,2615.8,2615.7,0.78259]
[1729256185105,0.38238,2615.8,2615.7,0.78259]
[1729256186198,0.38238,2615.8,2615.7,1.18829]
[1729256188108,3.59017,2615.9,2615.8,0.38238]
[1729256190702,3.2078,2615.9,2615.8,3.36238]
[1729256191203,2.63385609,2615.9,2615.8,3.36238]
[1729256191608,4.145,2616.4,2616.1,0.38234]
[1729256191808,3.2078,2616.5,2616.4,0.3823]
[1729256191809,3.59009,2616.5,2616.4,0.3823]
[1729256192201,3.2078,2616.5,2616.2,0.8493]
[1729256192406,0.38231,2616.3,2616.2,1.2316]
[1729256194019,3.8224,2616.3,2615.7,3.921]
[1729256194208,3.8224,2616.3,2615.9,0.38235]
[1729256194209,0.38236,2616.0,2615.9,0.38235]
[1729256194715,0.38237,2615.9,2615.8,1.21597]
[1729256195213,0.38237,2616.0,2615.8,1.21597]
[1729256195409,0.7521,2616.2,2615.8,0.8336]
[1729256195606,0.38237,2615.9,2615.8,0.8336]
[1729256199111,0.38237,2615.9,2615.8,1.21598]
[1729256200207,0.38237,2615.9,2615.8,0.8336]
[1729256200407,0.38237,2615.9,2615.8,0.4205]
[1729256202015,0.38237,2615.9,2615.8,0.80288]
[1729256202421,0.38237,2615.9,2615.8,0.4205]
[1729256204516,0.38237,2615.9,2615.8,0.80288]
[1729256204720,3.59016,2616.0,2615.9,0.38237]
[1729256205818,3.2078,2616.0,2615.9,3.36237]
[1729256206010,0.38235,2616.1,2616.0,0.38235]
[1729256206210,0.38235,2616.1,2616.0,0.78635]
[1729256208317,3.59012,2616.3,2616.2,0.38232]
[1729256208521,0.38229,2616.5,2616.2,2.98]
[1729256208717,3.2078,2616.6,2616.2,2.98]
[1729256208718,0.3823,2616.4,2616.3,0.38229]
[1729256208919,0.3823,2616.4,2616.3,0.80439]
[1729256209224,0.38229,2616.5,2616.4,0.38229]
[1729256220223,3.59008,2616.6,2616.5,0.38228]
[1729256223831,0.3823,2616.5,2616.4,0.38228]
[1729256224030,0.3823,2616.5,2616.3,0.4221]
[1729256224031,0.3823,2616.4,2616.3,0.8044]
[1729256224227,0.3823,2616.4,2616.3,0.4221]
[1729256225222,0.38232,2616.2,2616.1,0.4108]
[1729256225524,0.38234,2616.1,2616.0,0.8127]
[1729256226319,0.38234,2616.1,2616.0,1.19505]
[1729256229638,0.38234,2616.2,2616.1,0.38233]
[1729256229826,0.38234,2616.2,2616.1,1.76233]
[1729256233228,0.38234,2616.2,2616.1,1.38]
[1729256233431,0.38234,2616.2,2616.1,1.76234]
[1729256234630,4.16352,2616.5,2616.1,1.76234]
[1729256234838,1.7623,2616.4,2616.3,1.38]
[1729256235232,3.2078,2616.5,2616.3,1.38]
[1729256235430,3.59008,2616.5,2616.4,1.7623]
[1729256235630,3.2078,2616.5,2616.4,1.7623]
[1729256235845,0.38218,2617.3,2616.4,13.11831156]
[1729256236140,1.76216,2617.3,2617.2,1.38]
[1729256236632,1.76216,2617.3,2616.9,1.00166048]
[1729256236633,0.38219,2617.2,2617.1,1.76218]
[1729256236936,1.76219,2617.2,2617.1,1.38]
[1729256237131,0.38221,2617.0,2616.9,0.3949]
[1729256237331,1.76221,2617.0,2616.9,0.3949]
[1729256237828,0.38221,2617.0,2616.9,0.3949]
[1729256238438,3.6002,2617.1,2616.7,0.38224]
[1729256238640,3.6002,2617.1,2616.6,0.8452]
[1729256238641,6.5802,2617.1,2616.6,0.8452]
[1729256238830,7.95131,2617.1,2616.6,0.8452]
[1729256239037,6.9958,2617.1,2616.6,1.22746]
[1729256239336,0.38225,2616.7,2616.6,0.8452]
[1729256240035,0.38225,2616.7,2616.6,1.22747]
[1729256241238,0.38225,2616.7,2616.6,0.8452]
[1729256241739,0.38228,2616.5,2616.4,3.2078]
[1729256242132,4.20388,2616.5,2616.4,3.2078]
[1729256242337,0.38231,2616.3,2616.2,0.7976]
[1729256245241,3.8224,2616.3,2615.9,3.2078]
[1729256245441,0.38235,2616.0,2615.9,3.59017]
[1729256245745,0.38235,2616.0,2615.9,3.2078]
[1729256245945,0.38235,2616.0,2615.9,3.59017]
[1729256246444,0.38235,2616.0,2615.9,3.2078]
[1729256248647,41.75583,2616.2,2615.8,0.38237]
[1729256248845,0.38237,2615.9,2615.8,3.59017]
[1729256249236,0.38237,2615.9,2615.8,0.38237]
[1729256249437,0.38237,2615.9,2615.8,3.59017]
[1729256250444,0.38237,2615.9,2615.8,3.2078]
[1729256252844,1.38597,2616.1,2615.7,0.8204]
[1729256252845,0.38238,2615.8,2615.7,0.8204]
[1729256259850,0.38238,2615.8,2615.7,2.2004]
[1729256261157,3.2078,2616.0,2615.7,2.2004]
[1729256261456,3.2078,2616.0,2615.9,1.38]
[1729256262460,3.2078,2616.0,2615.9,1.76237]
[1729256262664,0.38235,2616.1,2616.0,0.38235]
[1729256262851,0.38235,2616.1,2616.0,1.76235]
[1729256263055,1.38,2616.1,2616.0,1.38]
[1729256263256,0.38234,2616.1,2616.0,1.38]
[1729256264664,0.38234,2616.1,2616.0,1.76235]
[1729256270762,1.76234,2616.1,2616.0,0.38235]
[1729256271169,0.38237,2616.0,2615.9,0.38235]
[1729256272973,1.38,2616.1,2615.8,1.38]
[1729256273172,0.38238,2615.9,2615.8,0.38237]
[1729256273470,0.38238,2615.8,2615.7,2.2004]
[1729256274373,0.38241,2615.6,2615.5,1.00166048]
[1729256274565,0.38241,2615.6,2615.5,0.3983]
[1729256274870,1.76241,2615.6,2615.5,0.3983]
[1729256276368,1.76241,2615.6,2615.5,1.7783]
[1729256276369,0.38241,2615.6,2615.5,1.7783]
[1729256278779,1.76241,2615.6,2615.5,0.3983]
[1729256278970,0.38241,2615.6,2615.5,1.7783]
[1729256279267,1.76241,2615.6,2615.5,0.3983]
[1729256285674,0.38241,2615.6,2615.5,1.7783]
[1729256287569,0.38241,2615.6,2615.5,2.16073]
[1729256289080,0.38241,2615.6,2615.5,1.7783]
[1729256289869,3.2078,2615.8,2615.5,5.6015]
[1729256290074,3.2078,2615.8,2615.7,1.7624]
[1729256290274,3.59018,2615.8,2615.7,1.7624]
[1729256291676,3.59018,2615.8,2615.7,0.3824]
[1729256291677,4.97018,2615.8,2615.7,0.3824]
[1729256292388,3.59018,2615.8,2615.7,0.3824]
[1729256293375,3.2078,2615.8,2615.7,1.7624]
[1729256293990,0.38237,2616.0,2615.9,0.38235]
[1729256294685,0.38237,2616.0,2615.9,1.18945]
[1729256296191,1.76237,2616.0,2615.9,1.18945]
[1729256296783,1.38,2616.0,2615.9,2.56945]
[1729256297090,3.59013,2616.2,2616.1,0.38234]
[1729256297292,3.59013,2616.2,2616.1,2.76461802]
[1729256297495,3.2078,2616.2,2616.1,2.76461802]
[1729256297699,3.59012,2616.2,2616.1,2.76461802]
[1729256297888,4.97012,2616.2,2616.1,1.38461802]
[1729256298294,1.76232,2616.2,2616.1,1.38461802]
[1729256302693,1.76232,2616.2,2616.1,0.38234]
[1729256308903,1.76232,2616.3,2616.2,0.38231]
[1729256309201,0.38232,2616.2,2616.1,1.76233]
[1729256310402,1.38,2616.3,2616.1,1.38]
[1729256310605,0.38232,2616.2,2616.1,1.76233]
[1729256313509,0.38232,2616.3,2616.2,0.38231]
[1729256313804,0.38232,2616.3,2616.2,1.76231]
[1729256314210,0.3823,2616.4,2616.3,0.3823]
[1729256314398,0.3823,2616.4,2616.3,0.7942]
[1729256316305,3.2078,2616.7,2616.4,0.95575]
[1729256316496,3.2078,2617.0,2616.6,1.38]
[1729256316700,1.76224,2616.8,2616.7,0.77474]
[1729256317108,0.38223,2616.9,2616.8,0.38222]
[1729256320203,0.38223,2616.9,2616.8,1.76222]
[1729256321013,4.5878,2617.0,2616.9,0.3822]
[1729256321014,0.38222,2617.0,2616.9,0.3822]
[1729256321211,0.38222,2617.0,2616.9,1.7622]
[1729256322110,5.96182,2617.3,2616.9,1.38]
[1729256322301,0.3822,2617.1,2617.0,1.76219]
[1729256322703,0.38219,2617.2,2617.1,0.38218]
[1729256323212,1.76219,2617.2,2617.1,0.38218]
[1729256326214,0.38222,2617.0,2616.9,0.3822]
[1729256326411,1.76222,2617.0,2616.9,0.3822]
[1729256327316,1.76222,2617.0,2616.8,0.80653]
[1729256327317,0.38222,2616.9,2616.8,0.80653]
[1729256328817,0.38222,2616.9,2616.8,2.18653]
[1729256329008,0.38221,2617.0,2616.9,0.38221]
[1729256329203,0.38221,2617.0,2616.9,1.76221]
[1729256329404,0.38219,2617.2,2617.1,0.38218]
[1729256329719,0.38218,2617.2,2617.1,1.76218]
[1729256330218,5.0064,2617.3,2617.1,1.38]
[1729256330515,2.18078,2617.3,2617.2,1.76218]
[1729256331718,2.18078,2617.3,2617.2,0.38218]
[1729256332115,2.18078,2617.3,2617.2,0.80358]
[1729256333511,3.2078,2617.6,2617.4,0.38213]
[1729256333706,3.58993,2617.6,2617.5,1.76213]
[1729256337613,3.2078,2617.6,2617.5,1.76213]
[1729256339728,0.38211,2617.7,2617.5,1.38]
[1729256339923,0.38211,2617.7,2617.6,1.76212]
[1729256340418,5.2,2617.7,2617.2,4.4143]
[1729256340617,0.38216,2617.3,2617.2,5.3977]
[1729256341014,0.38216,2617.3,2617.2,2.1899]
[1729256341015,41.18216,2617.3,2617.2,2.1899]
[1729256341223,41.18216,2617.3,2617.2,2.57208]
[1729256341418,41.18216,2617.3,2617.2,2.1899]
[1729256341824,41.18216,2617.3,2617.2,2.57208]
[1729256342325,0.38216,2617.3,2617.2,2.57208]
[1729256344923,41.60096,2617.4,2617.3,0.38216]
[1729256345119,41.60096,2617.4,2617.3,1.38]
[1729256345325,0.80096,2617.4,2617.3,1.38]
[1729256345740,0.80096,2617.4,2617.3,1.76216]
[1729256346327,0.80096,2617.4,2617.3,1.38]
[1729256346328,0.38216,2617.4,2617.3,1.38]
[1729256346938,0.38216,2617.4,2617.3,1.76216]
[1729256349739,0.95529,2617.7,2617.3,7.5362]
[1729256349740,3.2078,2617.7,2617.3,7.5362]
[1729256349942,0.38211,2617.8,2617.7,0.3821]
[1729256350242,0.38211,2617.8,2617.7,2.1681]
[1729256351833,0.4006,2617.9,2617.7,1.786]
[1729256352027,3.58988,2618.0,2617.9,0.38208]
[1729256352237,3.58988,2618.0,2617.9,1.76208]
[1729256353432,4.96988,2618.0,2617.9,0.38208]
[1729256353638,3.58988,2618.0,2617.9,1.76208]
[1729256356040,0.38208,2618.0,2617.9,1.76208]
[1729256358336,0.38206,2618.1,2618.0,0.38205]
[1729256358638,0.38206,2618.1,2618.0,1.76205]
[1729256358836,3.2078,2618.3,2618.0,2.76]
[1729256359032,3.2078,2618.3,2618.2,1.38]
[1729256359644,3.2078,2618.3,2618.2,1.8091]
[1729256360339,3.58983,2618.3,2618.2,2.19113]
[1729256360852,3.58983,2618.3,2618.2,1.8091]
[1729256361741,0.38203,2618.3,2618.2,1.8091]
[1729256362642,0.38203,2618.3,2618.2,1.38]
[1729256362847,0.38203,2618.3,2617.8,0.4273]
[1729256362848,0.38205,2618.1,2618.0,1.76205]
[1729256366149,0.38205,2618.1,2618.0,2.17675]
[1729256366843,0.38203,2618.3,2618.2,0.38202]
[1729256367047,0.38203,2618.3,2618.2,1.76202]
[1729256367245,3.58982,2618.4,2618.3,0.38202]
[1729256367443,3.58982,2618.4,2618.3,2.16702]
[1729256368343,0.38204,2618.2,2618.1,0.38203]
[1729256368542,3.58982,2618.4,2618.3,0.38202]
[1729256368846,3.58982,2618.4,2618.3,1.76202]
[1729256369163,4.5878,2618.4,2618.0,0.4147]
[1729256369448,4.5878,2618.4,2618.3,1.38]
[1729256369449,3.2078,2618.4,2618.3,1.38]
[1729256369645,3.5898,2618.4,2618.3,1.38]
[1729256369839,3.5898,2618.4,2618.3,1.76202]
[1729256371141,3.5898,2618.4,2618.3,1.38]
[1729256372650,3.5898,2618.4,2618.0,0.4147]
[1729256372651,0.38202,2618.3,2618.2,1.38]
[1729256372848,1.76202,2618.3,2618.2,1.38]
[1729256373052,0.38205,2618.1,2618.0,1.7947]
[1729256373247,0.38205,2618.1,2618.0,1.38]
[1729256373444,1.38,2618.1,2617.8,1.7794]
[1729256373654,0.38208,2617.9,2617.8,1.7794]
[1729256376952,0.38212,2617.7,2617.6,0.38212]
[1729256377155,0.38212,2617.7,2617.6,1.76212]
[1729256378544,0.3821,2617.8,2617.7,0.38211]
[1729256378745,0.3821,2617.8,2617.7,1.76211]
[1729256379148,3.58986,2618.1,2618.0,0.38206]
[1729256379350,3.58986,2618.1,2618.0,1.76206]
[1729256379746,0.38206,2618.1,2618.0,1.76206]
[1729256380349,0.38206,2618.1,2618.0,3.14206]
[1729256380853,0.38206,2618.1,2618.0,1.76206]
[1729256381154,3.2078,2618.5,2618.0,3.71516]
[1729256381360,3.58979,2618.5,2618.4,1.38]
[1729256381743,3.58979,2618.5,2618.4,3.362]
[1729256382047,3.2078,2618.5,2618.4,3.362]
[1729256383659,3.2078,2618.5,2618.4,0.382]
[1729256383953,3.58979,2618.5,2618.4,0.382]
[1729256384153,3.2078,2618.5,2618.4,0.382]
[1729256384760,0.38198,2618.6,2618.5,0.38199]
[1729256385350,0.382,2618.4,2618.3,1.20671]
[1729256387258,0.382,2618.4,2618.3,0.8247]
[1729256387457,0.38205,2618.2,2618.1,0.78004]
[1729256398378,0.38203,2618.3,2618.2,0.38202]
[1729256398562,0.38203,2618.2,2618.1,0.78004]
[1729256399061,0.38203,2618.3,2618.2,0.38202]
[1729256400355,4.5623,2618.5,2618.1,0.398]
[1729256400662,4.5623,2618.5,2618.1,0.78004]
[1729256400663,0.38203,2618.2,2618.1,0.78004]
[1729256401261,0.38203,2618.2,2618.1,0.398]
[1729256401863,0.38205,2618.1,2618.0,1.8044]
[1729256402065,0.79525,2618.1,2618.0,1.8044]
[1729256402269,0.4132,2618.1,2617.9,0.80037]
[1729256402477,0.38206,2618.0,2617.9,1.7983]
[1729256402970,0.38206,2618.0,2617.9,2.18038]
[1729256406169,0.38209,2617.8,2617.7,1.41227802]
[1729256406477,1.76209,2617.8,2617.7,2.2007]
[1729256406865,0.38209,2617.8,2617.7,2.2007]
[1729256407673,0.38212,2617.6,2617.5,1.42687802]
[1729256407975,0.404,2617.7,2617.5,1.38]
[1729256408175,0.78611,2617.7,2617.6,1.76212]
[1729256408472,41.18211,2617.7,2617.6,1.76212]
[1729256408662,40.8,2617.7,2617.6,3.14212]
[1729256408868,3.2078,2617.8,2617.6,1.38]
[1729256409068,0.38209,2617.8,2617.7,1.38]
[1729256409370,0.38209,2617.8,2617.7,1.76211]
[1729256410176,0.38209,2617.8,2617.7,2.15451]
[1729256410371,0.38211,2617.7,2617.6,1.00227802]
[1729256410576,0.38211,2617.7,2617.6,1.38]
[1729256415174,0.38211,2617.7,2617.6,1.76212]
[1729256416576,1.784,2618.0,2617.6,1.38]
[1729256416872,0.38209,2617.9,2617.8,1.76208]
[1729256417274,0.38209,2617.9,2617.8,2.16388]
[1729256417580,4.1629,2618.2,2618.1,0.38205]
[1729256417581,3.2078,2618.2,2618.1,0.38205]
[1729256417775,3.2078,2618.2,2618.1,1.76205]
[1729256418467,0.38202,2618.3,2618.2,0.38203]
[1729256418672,0.38202,2618.3,2618.2,2.18383]
[1729256419374,40.8,2618.6,2618.2,1.8018]
[1729256419575,1.76197,2618.6,2618.5,1.38]
[1729256419771,0.4001,2618.7,2618.4,0.382]
[1729256419978,0.38198,2618.6,2618.5,0.38197]
[1729256420180,0.38197,2618.7,2618.6,0.38196]
[1729256420888,0.38195,2618.8,2618.7,0.38196]
[1729256421477,40.8,2619.0,2618.5,2.98]
[1729256421886,0.38195,2618.8,2618.6,0.38196]
[1729256422178,0.38195,2618.8,2618.7,0.398]
[1729256422377,0.38195,2618.8,2618.7,0.7953]
[1729256423176,0.38195,2618.8,2618.7,0.3973]
[1729256425775,3.2078,2618.9,2618.7,0.3973]
[1729256425976,0.38191,2619.1,2619.0,0.38191]
[1729256426176,0.38189,2619.2,2619.1,0.4275]
[1729256426780,0.38194,2618.8,2618.7,0.38196]
[1729256426981,0.38197,2618.7,2618.6,0.80947]
[1729256427187,0.38197,2618.7,2618.6,0.4275]
[1729256431689,0.38197,2618.7,2618.6,0.80947]
[1729256435287,0.38195,2618.8,2618.7,0.38195]
[1729256437092,0.38196,2618.7,2618.6,0.80946]
[1729256437487,0.38196,2618.8,2618.7,0.38195]
[1729256438397,0.38196,2618.7,2618.6,0.80946]
[1729256439782,1.38,2618.9,2618.6,1.8075]
[1729256439978,1.76193,2618.9,2618.8,1.38]
[1729256440786,0.38193,2618.9,2618.8,1.38]
[1729256441289,1.76193,2618.9,2618.8,1.38]
[1729256442300,1.76193,2618.9,2618.8,1.76194]
[1729256442487,0.38193,2618.9,2618.8,1.76194]
[1729256442687,1.76193,2619.0,2618.9,0.38193]
[1729256443003,1.76193,2619.0,2618.8,1.38]
[1729256443004,0.38193,2618.9,2618.8,1.76193]
[1729256444991,1.76193,2619.0,2618.9,0.38193]
[1729256445198,1.76193,2619.0,2618.9,1.76193]
[1729256445882,3.2078,2619.3,2618.9,1.38]
[1729256446084,0.38193,2618.9,2618.8,1.7832]
[1729256447293,1.38,2619.1,2618.8,1.7832]
[1729256447489,0.38191,2619.1,2619.0,1.7619]
[1729256447793,4.5878,2619.3,2619.0,1.38]
[1729256447991,4.96969,2619.3,2619.2,0.38189]
[1729256448299,0.38189,2619.2,2619.1,1.76189]
[1729256449393,0.38189,2619.3,2619.2,0.38187]
[1729256449786,1.76189,2619.3,2619.2,0.38187]
[1729256451699,40.8,2619.5,2619.2,1.38]
[1729256451892,0.38185,2619.5,2619.4,1.76183]
[1729256452295,1.38,2619.5,2619.3,0.4183]
[1729256452501,2.18426,2619.4,2619.3,0.4183]
[1729256452991,2.18426,2619.4,2619.1,1.7619]
[1729256452992,0.3819,2619.2,2619.1,1.7619]
[1729256453188,1.7619,2619.2,2619.1,1.7619]
[1729256454188,0.3819,2619.2,2619.1,1.7619]
[1729256454388,0.3819,2619.2,2619.1,1.38]
[1729256454597,0.3819,2619.2,2619.1,1.7619]
[1729256455102,0.3819,2619.2,2619.1,1.38]
[1729256455303,0.3819,2619.2,2619.1,1.7619]
[1729256455794,0.3819,2619.2,2619.1,1.38]
[1729256456205,0.3819,2619.2,2619.1,1.7619]
[1729256456390,0.3819,2619.2,2619.1,1.38]
[1729256456699,1.7619,2619.2,2619.1,1.38]
[1729256457205,0.3819,2619.1,2619.0,3.2078]
[1729256457499,0.3819,2619.1,2619.0,4.5878]
[1729256459000,0.3819,2619.1,2619.0,4.96972]
[1729256461401,0.3819,2619.1,2619.0,4.5878]
[1729256462809,0.38188,2619.3,2619.2,0.38187]
[1729256463105,0.38188,2619.3,2619.2,1.76189]
[1729256466002,0.38188,2619.3,2619.2,1.38]
[1729256466303,0.38189,2619.2,2619.1,0.4003]
[1729256466500,0.79119,2619.2,2619.1,0.4003]
[1729256467303,0.79119,2619.2,2619.1,1.7803]
[1729256469501,0.79119,2619.2,2619.1,0.4003]
[1729256470802,2.17119,2619.2,2619.1,0.4003]
[1729256471008,0.38193,2618.9,2618.8,0.4183]
[1729256471308,0.38193,2618.9,2618.8,2.18024]
[1729256471911,1.76193,2618.9,2618.8,0.4183]
[1729256472114,0.38193,2618.9,2618.8,1.7983]
[1729256472412,1.38,2619.0,2618.7,0.3908]
[1729256472707,0.38194,2618.8,2618.7,2.56624]
[1729256474312,0.38194,2618.9,2618.8,0.38194]
[1729256474812,0.38194,2618.9,2618.8,1.76194]
[1729256475504,0.38193,2619.0,2618.9,0.38192]
[1729256475815,0.38193,2619.0,2618.9,1.38]
[1729256476311,0.38189,2619.2,2619.1,0.38189]
[1729256476508,3.58968,2619.3,2619.2,0.38189]
[1729256476704,3.58968,2619.3,2619.2,2.16699]
[1729256477212,3.58968,2619.3,2619.2,1.7851]
[1729256477408,4.96968,2619.3,2619.2,0.4051]
[1729256477610,0.38189,2619.2,2619.1,1.807]
[1729256478004,1.76189,2619.2,2619.1,1.807]
[1729256478204,1.76189,2619.2,2619.1,0.427]
[1729256478413,1.38,2619.2,2619.0,0.3913]
[1729256478615,1.7619,2619.1,2619.0,0.3913]
[1729256479011,1.7619,2619.1,2619.0,0.77322]
[1729256479207,0.38192,2619.0,2618.9,1.777]
[1729256479513,0.38192,2619.0,2618.9,0.397]
[1729256479514,4.96972,2619.0,2618.9,0.397]
[1729256479714,5.25112,2619.0,2618.9,0.397]
[1729256480115,3.58972,2619.0,2618.9,0.397]
[1729256481204,4.96972,2619.0,2618.9,0.397]
[1729256483311,1.76192,2619.0,2618.9,0.397]
[1729256484108,1.76192,2619.0,2618.5,1.38]
[1729256484109,0.38197,2618.6,2618.5,1.38]
[1729256484413,0.38197,2618.6,2618.5,2.59449]
[1729256487611,1.38,2618.8,2618.5,2.2125]
[1729256487816,0.38194,2618.8,2618.7,1.76196]
[1729256489623,0.38194,2618.8,2618.7,1.38]
[1729256489824,0.38194,2618.8,2618.7,1.76196]
[1729256490322,0.95483,2618.9,2618.8,0.38193]
[1729256490323,0.38194,2618.9,2618.8,0.38193]
[1729256490524,0.38194,2618.9,2618.8,2.16973]
[1729256490720,0.38192,2619.0,2618.9,0.38191]
[1729256490923,3.2078,2619.2,2619.0,0.3819]
[1729256490924,0.38191,2619.1,2619.0,0.3819]
[1729256491121,3.2078,2619.2,2619.0,1.38]
[1729256491331,3.58969,2619.2,2619.1,1.38]
[1729256491516,3.58969,2619.2,2619.1,1.7619]
[1729256492123,3.2078,2619.2,2619.1,1.7619]
[1729256492322,3.2078,2619.2,2618.7,1.99431994]
[1729256492323,0.37392003,2619.0,2618.7,1.99431994]
[1729256492621,3.2078,2617.9,2615.6,3.5904]
[1729256492821,3.2078,2616.1,2615.5,3.2078]
[1729256493025,0.38238,2615.8,2615.2,3.2078]
[1729256493217,1.98888732,2615.6,2615.4,7.30686232]
[1729256493419,1.48467529,2615.7,2615.4,7.30686232]
[1729256493624,2.86467529,2615.5,2615.0,0.3912]
[1729256493814,0.38245,2615.4,2615.3,7.30686232]
[1729256494625,0.38247,2615.3,2614.7,3.6064]
[1729256494833,0.38247,2615.3,2615.2,7.30686232]
[1729256495723,0.38249,2615.1,2614.7,0.3986]
[1729256495933,0.38249,2615.1,2615.0,7.30686232]
[1729256498138,3.59029,2615.1,2615.0,7.30686232]
[1729256500130,0.38253,2614.8,2614.7,0.3986]
[1729256500326,3.37253,2614.8,2614.7,0.3986]
[1729256500533,3.37253,2614.8,2614.7,7.30686232]
[1729256502028,3.37253,2614.8,2614.4,3.2078]
[1729256502029,0.38257,2614.5,2614.4,3.2078]
[1729256502224,3.37257,2614.5,2614.4,3.2078]
[1729256502429,3.37257,2614.5,2614.4,10.51466232]
[1729256502629,3.37257,2614.5,2614.4,7.30686232]
[1729256503629,3.2078,2614.8,2614.4,7.30686232]
[1729256503936,0.95617,2615.3,2614.4,3.2078]
[1729256503937,0.38257,2614.6,2614.4,3.2078]
[1729256504137,3.2078,2615.0,2614.4,7.30686232]
[1729256504349,0.38256,2614.6,2614.5,3.2078]
[1729256504641,2.99,2614.7,2614.5,10.51466232]
[1729256504842,0.38256,2614.6,2614.5,3.2078]
[1729256505043,2.99,2614.7,2614.6,7.30686232]
[1729256505242,3.37254,2614.7,2614.6,7.30686232]
[1729256506932,0.38254,2614.7,2614.6,7.30686232]
[1729256512641,3.37254,2614.7,2614.6,7.30686232]
[1729256514339,0.38254,2614.7,2614.6,7.30686232]
[1729256519246,3.37254,2614.7,2614.6,7.30686232]
[1729256519752,0.38262,2614.2,2614.1,0.7925]
[1729256520253,0.38262,2614.2,2614.1,8.09936232]
[1729256520956,0.38268,2613.8,2613.7,3.2078]
[1729256521450,3.37268,2613.8,2613.7,9.63095232]